fUSD/lending_fUSD_20260406
["ID","MTS","AMOUNT","RATE_DAILY","PERIOD"]
[419905861,1775495468727,-150.0,0.00014858,2]
[419905862,1775495468738,-150.0,0.00014861,2]
[419905863,1775495468747,-10083.37203496,0.00014863,2]
[419905864,1775495468757,-284.0,0.0001487,2]
[419905865,1775495468767,-1600.0,0.00014874,2]
[419905866,1775495468777,-1000.0,0.00014876,2]
[419905867,1775495468787,-150.0,0.00014877,2]
[419905868,1775495468797,-1500.0,0.00014878,2]
[419905869,1775495468807,-3000.0,0.00014878,2]
[419905870,1775495468817,-150.0,0.00014881,2]
[419905871,1775495468827,-150.0,0.00014885,2]
[419905872,1775495468837,-150.0,0.00014885,2]
[419905873,1775495468847,-150.0,0.0001489,2]
[419905874,1775495468857,-1000.0,0.00014896,2]
[419905875,1775495468867,-1653.92465572,0.000149,2]
[419905876,1775495468877,-3292.0,0.00014906,2]
[419905877,1775495468887,-1000.0,0.00014913,2]
[419905878,1775495468897,-150.0,0.00014914,2]
[419905879,1775495468907,-150.0,0.00014914,2]
[419905880,1775495468916,-150.0,0.00014914,2]
[419905881,1775495468926,-150.0,0.00014914,2]
[419905882,1775495468936,-150.0,0.00014914,2]
[419905883,1775495469119,-150.0,0.00014914,2]
[419905884,1775495469129,-150.0,0.00014914,2]
[419905885,1775495469138,-534.64,0.00014914,2]
[419905886,1775495469148,-1148.372646,0.00014915,2]
[419905887,1775495469157,-1311.204456,0.00014915,2]
[419905888,1775495469167,-1000.0,0.00014931,2]
[419905889,1775495469176,-150.0,0.00014937,2]
[419905890,1775495469185,-150.0,0.00014943,2]
[419905891,1775495469194,-150.0,0.00014943,2]
[419905892,1775495469203,-150.0,0.00014946,2]
[419905893,1775495469213,-1000.0,0.00014947,2]
[419905894,1775495469222,-150.0,0.00014966,2]
[419905895,1775495469231,-150.0,0.0001497,2]
[419905896,1775495469241,-18855.97246626,0.00014971,2]
[419905897,1775495469250,-1000.0,0.00014973,2]
[419905898,1775495469260,-150.0,0.00014974,2]
[419905899,1775495469269,-150.0,0.00014979,2]
[419905900,1775495469278,-152.0,0.0001498,18]
[419905901,1775495469288,-500.0,0.00014985,3]
[419905902,1775495469297,-150.0,0.00014985,2]
[419905903,1775495469306,-150.0,0.00014986,2]
[419905904,1775495469315,-17439.4537406,0.00014996,2]
[419905905,1775495469324,-1828.25871,0.00014996,2]
[419905906,1775495469334,-260.80375001,0.00014999,2]
[419905907,1775495469343,-434.0,0.00015,2]
[419905908,1775495469352,-1387.0,0.00015,2]
[419905909,1775495469361,-300.0,0.00015,3]
[419905910,1775495469370,-2303.29465999,0.00015,2]
[419905911,1775495469380,-2000.0,0.00015,2]
[419905912,1775495469389,-150.0,0.00015,7]
[419905913,1775495469399,-150.0,0.00015,2]
[419905914,1775495469408,-300.0,0.00015,2]
[419905915,1775495469418,-7724.0,0.00015,15]
[419905916,1775495469428,-885.52924782,0.00015,2]
[419905917,1775495471075,-151.0,0.00013699,2]
[419905918,1775495471084,-151.0,0.00013699,2]
[419905919,1775495471094,-546.258356,0.00013699,2]
[419905920,1775495471103,-1222.333191,0.00013699,2]
[419905921,1775495471112,-151.0,0.00013699,2]
[419905922,1775495471121,-197.568857,0.00013699,2]
[419905923,1775495471130,-157.138397,0.00013699,2]
[419905924,1775495471139,-151.0,0.00013699,2]
[419905925,1775495471148,-546.258356,0.00013699,2]
[419905926,1775495471158,-1222.333191,0.00013699,2]
[419905927,1775495471167,-151.0,0.00013699,2]
[419905928,1775495471176,-197.568857,0.00013699,2]
[419905929,1775495471186,-157.138397,0.00013699,2]
[419905930,1775495471195,-157.138397,0.00013699,2]
[419905931,1775495471204,-197.568857,0.00013699,2]
[419905932,1775495471214,-151.0,0.00013699,2]
[419905933,1775495471224,-1222.333191,0.00013699,2]
[419905934,1775495471233,-197.568857,0.00013699,2]
[419905935,1775495471243,-157.138397,0.00013699,2]
[419905936,1775495471253,-225.006569,0.00013699,2]
[419905937,1775495471262,-1222.333191,0.00013699,2]
[419905938,1775495471272,-197.568857,0.00013699,2]
[419905939,1775495471282,-157.138397,0.00013699,2]
[419905940,1775495471292,-151.0,0.00013699,2]
[419905941,1775495471301,-546.258361,0.00013699,2]
[419905942,1775495471461,-1222.333191,0.00013699,2]
[419905943,1775495471471,-197.568857,0.00013699,2]
[419905944,1775495471481,-157.138397,0.00013699,2]
[419905945,1775495471491,-154.84,0.000137,2]
[419905946,1775495471501,-154.84,0.000137,2]
[419905947,1775495471511,-154.84,0.000137,2]
[419905948,1775495471521,-154.84,0.000137,2]
[419905949,1775495471531,-3771.0,0.0001375,2]
[419905950,1775495471541,-1114.47075218,0.00015,2]
[419905951,1775495471550,-150.0,0.00015001,2]
[419905952,1775495471560,-150.0,0.00015001,2]
[419905953,1775495471570,-150.0,0.00015012,2]
[419905954,1775495471580,-150.0,0.00015018,2]
[419905955,1775495471589,-1000.0,0.00015019,2]
[419905956,1775495471598,-150.0,0.00015026,2]
[419905957,1775495471608,-150.0,0.00015033,2]
[419905958,1775495471618,-1573.0,0.0001504,2]
[419905959,1775495471627,-2811.0,0.0001504,2]
[419905960,1775495471637,-2811.0,0.0001504,2]
[419905961,1775495471647,-2811.0,0.0001504,2]
[419905962,1775495471656,-150.0,0.00015045,2]
[419905963,1775495471666,-150.0,0.00015045,2]
[419905964,1775495471676,-2000.0,0.00015045,2]
[419905965,1775495471686,-362.7,0.00015057,2]
[419905966,1775495471696,-274.23,0.00015057,2]
[419905967,1775495471705,-1006.31,0.00015057,2]
[419905968,1775495471715,-4874.6,0.00015057,2]
[419905969,1775495471724,-411.86,0.00015057,2]
[419905970,1775495471734,-500.0,0.00015058,2]
[419905971,1775495471745,-2000.0,0.00015058,2]
[419905972,1775495471754,-150.0,0.00015059,2]
[419905973,1775495471765,-150.0,0.00015059,2]
[419905974,1775495471774,-2014.31,0.00015068,2]
[419905975,1775495471784,-520.81,0.00015068,2]
[419905976,1775495471794,-151.0,0.00015068,2]
[419905977,1775495471804,-151.0,0.00015068,2]
[419905978,1775495471815,-151.0,0.00015068,2]
[419905979,1775495471825,-151.0,0.00015068,2]
[419905980,1775495471835,-800.0,0.00015068,2]
[419905981,1775495471845,-150.0,0.00015071,2]
[419905982,1775495471854,-1000.0,0.00015073,2]
[419905983,1775495471863,-150.0,0.00015077,2]
[419905984,1775495471872,-150.0,0.0001508,2]
[419905985,1775495471881,-150.0,0.00015082,2]
[419905986,1775495471890,-150.0,0.00015095,2]
[419905987,1775495471900,-980.65,0.000151,2]
[419905988,1775495471909,-244.75,0.000151,2]
[419905989,1775495471919,-244.75,0.000151,2]
[419905990,1775495471928,-244.75,0.000151,2]
[419905991,1775495471939,-2000.0,0.000151,2]
[419905992,1775495471948,-150.0,0.00015102,2]
[419905993,1775495471958,-150.0,0.0001511,2]
[419905994,1775495471968,-150.0,0.0001511,2]
[419905995,1775495471977,-150.0,0.00015117,2]
[419905996,1775495471986,-150.0,0.00015117,2]
[419905997,1775495471995,-150.0,0.00015123,2]
[419905998,1775495472005,-150.0,0.00015128,2]
[419905999,1775495472014,-200.0,0.00015136,2]
[419906000,1775495472023,-1592.87721993,0.00015136,2]
[419906001,1775495472032,-201.93286099,0.00015136,2]
[419906002,1775495472041,-150.0,0.00015138,2]
[419906003,1775495472050,-150.0,0.00015143,2]
[419906004,1775495472059,-1000.0,0.00015164,2]
[419906005,1775495472068,-1000.0,0.00015166,2]
[419906006,1775495472077,-152.0,0.00015172,19]
[419906007,1775495472087,-1000.0,0.00015175,2]
[419906008,1775495472096,-150.0,0.00015175,2]
[419906009,1775495472106,-150.0,0.00015175,2]
[419906010,1775495472115,-150.0,0.00015175,2]
[419906011,1775495472124,-150.0,0.00015175,2]
[419906012,1775495472134,-150.0,0.00015175,2]
[419906013,1775495472143,-150.0,0.00015175,2]
[419906014,1775495472153,-955.62736973,0.00015182,30]
[419906015,1775495472162,-150.0,0.00015188,2]
[419906016,1775495472171,-1000.0,0.00015192,2]
[419906017,1775495472180,-150.0,0.00015194,2]
[419906018,1775495472190,-2000.0,0.000152,2]
[419906019,1775495472199,-1000.0,0.00015203,2]
[419906020,1775495472209,-699.8669569,0.00015205,2]
[419906021,1775495472219,-174.96673923,0.00015205,2]
[419906022,1775495472229,-8225.03,0.00015205,2]
[419906023,1775495472238,-1000.0,0.00015208,2]
[419906024,1775495472248,-150.0,0.00015208,2]
[419906025,1775495472257,-150.0,0.00015216,2]
[419906026,1775495472266,-150.0,0.00015223,2]
[419906027,1775495472275,-150.0,0.00015228,2]
[419906028,1775495472285,-150.0,0.00015233,2]
[419906029,1775495472294,-150.0,0.00015233,2]
[419906030,1775495472303,-150.0,0.00015241,2]
[419906031,1775495472312,-150.0,0.00015243,2]
[419906032,1775495472322,-150.0,0.0001525,2]
[419906033,1775495472331,-699.8669569,0.0001526,2]
[419906034,1775495472341,-1173.78,0.00015268,2]
[419906035,1775495472350,-150.0,0.0001527,2]
[419906036,1775495472359,-150.0,0.00015273,2]
[419906037,1775495472368,-150.0,0.0001528,2]
[419906038,1775495472377,-150.0,0.00015292,2]
[419906039,1775495472387,-150.0,0.00015292,2]
[419906040,1775495472396,-1000.0,0.00015293,2]
[419906041,1775495472406,-2000.0,0.000153,2]
[419906042,1775495472415,-6140.00081636,0.00015303,2]
[419906043,1775495472424,-150.0,0.00015306,2]
[419906044,1775495472434,-150.0,0.00015306,2]
[419906045,1775495472443,-150.0,0.00015306,2]
[419906046,1775495472453,-150.0,0.00015306,2]
[419906047,1775495472463,-699.8669569,0.00015315,2]
[419906048,1775495472473,-150.0,0.00015318,2]
[419906049,1775495472482,-1000.0,0.00015321,2]
[419906050,1775495472491,-1000.0,0.0001533,2]
[419906051,1775495472501,-150.0,0.00015332,2]
[419906052,1775495472510,-150.0,0.00015336,2]
[419906053,1775495472520,-150.0,0.00015339,2]
[419906054,1775495472529,-174.96673923,0.00015342,2]
[419906055,1775495472539,-1017.22837258,0.00015342,2]
[419906056,1775495472549,-2000.0,0.00015342,2]
[419906057,1775495472558,-189.00582331,0.00015342,2]
[419906058,1775495472567,-500.0,0.00015342,2]
[419906059,1775495472577,-1000.0,0.00015345,2]
[419906060,1775495472586,-150.0,0.0001535,2]
[419906061,1775495472595,-150.0,0.0001535,2]
[419906062,1775495472604,-162.0,0.0001536,2]
[419906063,1775495472613,-1573.0,0.0001536,2]
[419906064,1775495472622,-2811.0,0.0001536,2]
[419906065,1775495472631,-1573.0,0.0001536,2]
[419906066,1775495472641,-150.0,0.00015362,2]
[419906067,1775495472650,-152.0,0.00015365,20]
[419906068,1775495472660,-150.0,0.00015366,2]
[419906069,1775495472669,-465.55,0.00015368,2]
[419906070,1775495472678,-699.8669569,0.0001537,2]
[419906071,1775495472687,-150.0,0.00015372,2]
[419906072,1775495472696,-3891.268106,0.00015375,2]
[419906073,1775495472705,-407.9396587,0.00015375,2]
[419906074,1775495472715,-10083.37203496,0.00015382,2]
[419906075,1775495472724,-500.0,0.00015384,2]
[419906076,1775495472733,-150.0,0.00015385,2]
[419906077,1775495472743,-500.0,0.00015385,2]
[419906078,1775495472752,-150.0,0.00015397,2]
[419906079,1775495472761,-500.0,0.00015399,2]
[419906080,1775495472771,-209.168,0.000154,2]
[419906081,1775495472780,-2000.0,0.000154,2]
[419906082,1775495472788,-150.0,0.00015404,2]
[419906083,1775495472797,-150.0,0.00015408,2]
[419906084,1775495472806,-150.0,0.00015408,2]
[419906085,1775495472816,-150.0,0.00015413,2]
[419906086,1775495472825,-150.0,0.00015418,2]
[419906087,1775495472834,-18855.97246626,0.00015436,2]
[419906088,1775495472844,-150.0,0.00015437,2]
[419906089,1775495472853,-150.0,0.00015437,2]
[419906090,1775495472862,-150.0,0.00015437,2]
[419906091,1775495472872,-1000.0,0.00015446,2]
[419906092,1775495472881,-260.80375001,0.0001545,2]
[419906093,1775495472891,-699.8669569,0.00015452,2]
[419906094,1775495472900,-150.0,0.00015457,2]
[419906095,1775495472909,-150.0,0.00015461,2]
[419906096,1775495472919,-150.0,0.00015466,2]
[419906097,1775495472930,-150.0,0.00015466,2]
[419906098,1775495472939,-1000.0,0.00015468,2]
[419906099,1775495472948,-150.0,0.0001547,2]
[419906100,1775495472958,-150.0,0.00015474,2]
[419906101,1775495472969,-174.96673923,0.00015479,2]
[419906102,1775495472979,-150.0,0.00015489,2]
[419906103,1775495472988,-6500.0,0.000155,5]
[419906104,1775495472998,-1100.0,0.000155,5]
[419906105,1775495473008,-2000.0,0.000155,2]
[419906106,1775495473017,-150.0,0.00015502,2]
[419906107,1775495473027,-150.0,0.00015502,2]
[419906108,1775495473037,-699.8669569,0.00015507,2]
[419906109,1775495473047,-4000.0,0.00015507,2]
[419906110,1775495473057,-150.0,0.00015508,2]
[419906111,1775495473068,-150.0,0.00015511,2]
[419906112,1775495473077,-1000.0,0.00015523,2]
[419906113,1775495473087,-150.0,0.00015524,2]
[419906114,1775495473096,-150.0,0.00015524,2]
[419906115,1775495473106,-150.0,0.0001553,2]
[419906116,1775495473116,-1000.0,0.00015534,2]
[419906117,1775495473125,-150.0,0.00015535,2]
[419906118,1775495473135,-150.0,0.00015542,2]
[419906119,1775495473146,-150.0,0.00015556,2]
[419906120,1775495473156,-152.0,0.00015558,21]
[419906121,1775495473168,-699.8669569,0.00015562,2]
[419906122,1775495473178,-150.0,0.00015568,2]
[419906123,1775495473189,-150.0,0.00015568,2]
[419906124,1775495473199,-1000.0,0.00015573,2]
[419906125,1775495473209,-150.0,0.00015578,2]
[419906126,1775495473225,-1000.0,0.00015581,2]
[419906127,1775495473236,-150.0,0.00015582,2]
[419906128,1775495473247,-150.0,0.00015582,2]
[419906129,1775495473260,-150.0,0.00015586,2]
[419906130,1775495473271,-150.0,0.00015594,2]
[419906131,1775495473282,-1300.0,0.000156,5]
[419906132,1775495473293,-200.0,0.000156,5]
[419906133,1775495473304,-2000.0,0.000156,2]
[419906134,1775495473314,-150.0,0.00015601,2]
[419906135,1775495473324,-150.0,0.00015603,2]
[419906136,1775495473334,-1000.0,0.00015613,2]
[419906137,1775495473345,-699.8669569,0.00015616,2]
[419906138,1775495473357,-174.96673923,0.00015616,2]
[419906139,1775495473367,-500.0,0.00015618,2]
[419906140,1775495473377,-1000.0,0.00015631,2]
[419906141,1775495473387,-150.0,0.00015633,2]
[419906142,1775495473398,-150.0,0.0001564,2]
[419906143,1775495473408,-150.0,0.0001564,2]
[419906144,1775495473418,-150.0,0.00015643,2]
[419906145,1775495473427,-150.0,0.00015646,2]
[419906146,1775495473437,-150.0,0.00015651,2]
[419906147,1775495473447,-1000.0,0.00015664,2]
[419906148,1775495473458,-150.0,0.00015666,2]
[419906149,1775495473469,-162.0,0.0001568,2]
[419906150,1775495473479,-1579.0,0.0001568,2]
[419906151,1775495473489,-2811.0,0.0001568,2]
[419906152,1775495473499,-2811.0,0.0001568,2]
[419906153,1775495473510,-162.0,0.0001568,2]
[419906154,1775495473520,-1573.0,0.0001568,2]
[419906155,1775495473530,-599.60298507,0.00015683,2]
[419906156,1775495473539,-721.12765535,0.00015683,2]
[419906157,1775495473549,-200.0,0.00015684,2]
[419906158,1775495473559,-1651.81367706,0.00015684,2]
[419906159,1775495473570,-209.40437684,0.00015684,2]
[419906160,1775495473580,-699.8669569,0.00015699,2]
[419906161,1775495473589,-188.59451977,0.00015699,2]
[419906162,1775495473599,-258.12173445,0.00015699,2]
[419906163,1775495473609,-248.22369213,0.00015699,2]
[419906164,1775495473619,-151.81936318,0.00015699,2]
[419906165,1775495473628,-150.56974381,0.00015699,2]
[419906166,1775495473638,-151.17477809,0.00015699,2]
[419906167,1775495473647,-150.4044031,0.00015699,2]
[419906168,1775495473658,-264.93232248,0.00015699,2]
[419906169,1775495473668,-164.21532831,0.00015699,2]
[419906170,1775495473678,-185.86725558,0.00015699,2]
[419906171,1775495473688,-245.90319664,0.00015699,2]
[419906172,1775495473698,-207.13368263,0.00015699,2]
[419906173,1775495473708,-500.0,0.00015699,2]
[419906174,1775495473719,-500.0,0.00015699,2]
[419906175,1775495473730,-500.0,0.00015699,2]
[419906176,1775495473740,-500.0,0.00015699,2]
[419906177,1775495473751,-500.0,0.00015699,2]
[419906178,1775495473761,-500.0,0.00015699,2]
[419906179,1775495473771,-1025.01196795,0.00015699,5]
[419906180,1775495473782,-321175.26583837,0.000157,2]
[419906181,1775495473792,-647.91466627,0.000157,2]
[419906182,1775495473802,-4665.06684779,0.000157,2]
[419906183,1775495473811,-108196.9663687,0.000157,5]
[419906184,1775495473821,-2350.79586093,0.000157,2]
[419906185,1775495473831,-1300.0,0.000157,5]
[419906186,1775495473841,-200.0,0.000157,5]
[419906187,1775495473851,-2457.0367896,0.000157,2]
[419906188,1775495473862,-3008.24619321,0.000157,2]
[419906189,1775495473872,-2000.0,0.000157,2]
[419906190,1775495473882,-200.0,0.00015717,2]
[419906191,1775495473892,-200.0,0.00015717,2]
[419906192,1775495473901,-200.0,0.00015717,2]
[419906193,1775495473911,-174.96673923,0.00015726,2]
[419906194,1775495473922,-152.0,0.00015751,22]
[419906195,1775495473932,-259.86957341,0.00015751,5]
[419906196,1775495473942,-152.0,0.00015751,4]
[419906197,1775495473952,-152.0,0.00015751,5]
[419906198,1775495473963,-152.0,0.00015751,3]
[419906199,1775495473973,-152.0,0.00015751,5]
[419906200,1775495473983,-251.57987113,0.00015753,2]
[419906201,1775495473993,-699.8669569,0.00015753,2]
[419906202,1775495474003,-2014.31,0.00015753,2]
[419906203,1775495474012,-500.0,0.00015754,2]
[419906204,1775495474022,-500.0,0.00015754,2]
[419906205,1775495474031,-500.0,0.00015754,2]
[419906206,1775495474041,-500.0,0.00015754,2]
[419906207,1775495474050,-500.0,0.00015754,2]
[419906208,1775495474060,-629.61248699,0.00015754,2]
[419906209,1775495474071,-153.26957967,0.00015754,2]
[419906210,1775495474080,-500.0,0.00015754,2]
[419906211,1775495474090,-500.0,0.00015754,2]
[419906212,1775495474100,-500.0,0.00015754,2]
[419906213,1775495474109,-500.0,0.00015757,2]
[419906214,1775495474118,-500.0,0.00015777,2]
[419906215,1775495474128,-500.0,0.00015777,2]
[419906216,1775495474138,-500.0,0.00015777,2]
[419906217,1775495474148,-500.0,0.00015777,2]
[419906218,1775495474158,-500.0,0.00015777,2]
[419906219,1775495474168,-500.0,0.00015777,2]
[419906220,1775495474177,-500.0,0.00015777,2]
[419906221,1775495474187,-500.0,0.00015777,2]
[419906222,1775495474197,-500.0,0.00015777,2]
[419906223,1775495474206,-500.0,0.00015777,2]
[419906224,1775495474216,-500.0,0.00015777,2]
[419906225,1775495474226,-500.0,0.00015777,2]
[419906226,1775495474236,-500.0,0.00015777,2]
[419906227,1775495474245,-500.0,0.00015777,2]
[419906228,1775495474254,-500.0,0.00015777,2]
[419906229,1775495474264,-500.0,0.00015777,2]
[419906230,1775495474274,-500.0,0.00015777,2]
[419906231,1775495474284,-500.0,0.00015777,2]
[419906232,1775495474294,-483.87,0.00015778,2]
[419906233,1775495474304,-483.87,0.00015778,2]
[419906234,1775495474314,-483.87,0.00015778,2]
[419906235,1775495474323,-483.87,0.00015778,2]
[419906236,1775495474332,-483.86,0.00015778,2]
[419906237,1775495474342,-2744.77181497,0.000158,2]
[419906238,1775495474353,-1000.0,0.000158,7]
[419906239,1775495474362,-1300.0,0.000158,5]
[419906240,1775495474371,-200.0,0.000158,5]
[419906241,1775495474381,-2000.0,0.000158,2]
[419906242,1775495474390,-220.0,0.00015805,2]
[419906243,1775495474400,-2259.6319835,0.00015807,2]
[419906244,1775495474410,-699.8669569,0.00015808,2]
[419906245,1775495474419,-246.20591541,0.0001584,2]
[419906246,1775495474428,-1381.98,0.00015862,2]
[419906247,1775495474438,-699.8669569,0.00015863,2]
[419906248,1775495474448,-174.96673923,0.00015863,2]
[419906249,1775495474458,-25000.0,0.00015882,3]
[419906250,1775495474468,-500.0,0.0001589,2]
[419906251,1775495474478,-500.0,0.0001589,2]
[419906252,1775495474487,-500.0,0.0001589,2]
[419906253,1775495474496,-500.0,0.0001589,2]
[419906254,1775495474506,-500.0,0.0001589,2]
[419906255,1775495474515,-500.0,0.0001589,2]
[419906256,1775495474525,-500.0,0.0001589,2]
[419906257,1775495474534,-500.0,0.0001589,2]
[419906258,1775495474543,-500.0,0.0001589,2]
[419906259,1775495474553,-500.0,0.0001589,2]
[419906260,1775495474562,-500.0,0.0001589,2]
[419906261,1775495474572,-500.0,0.0001589,2]
[419906262,1775495474581,-500.0,0.0001589,2]
[419906263,1775495474590,-2000.0,0.0001589,2]
[419906264,1775495474600,-2500.0,0.0001589,2]
[419906265,1775495474610,-25000.0,0.00015891,3]
[419906266,1775495474620,-25000.0,0.00015891,3]
[419906267,1775495474629,-25000.0,0.00015891,3]
[419906268,1775495474639,-4000.0,0.00015895,2]
[419906269,1775495474648,-500.0,0.00015898,2]
[419906270,1775495474658,-500.0,0.00015898,2]
[419906271,1775495474667,-500.0,0.00015898,2]
[419906272,1775495474677,-500.0,0.00015898,2]
[419906273,1775495474686,-500.0,0.00015898,2]
[419906274,1775495474696,-500.0,0.00015898,2]
[419906275,1775495474706,-500.0,0.00015898,2]
[419906276,1775495474716,-500.0,0.00015898,2]
[419906277,1775495474725,-500.0,0.00015898,2]
[419906278,1775495474735,-500.0,0.00015898,2]
[419906279,1775495474744,-500.0,0.00015898,2]
[419906280,1775495474754,-500.0,0.00015898,2]
[419906281,1775495474764,-500.0,0.00015898,2]
[419906282,1775495474774,-500.0,0.00015898,2]
[419906283,1775495474784,-500.0,0.00015898,2]
[419906284,1775495474794,-500.0,0.00015898,2]
[419906285,1775495474803,-500.0,0.00015898,2]
[419906286,1775495474813,-500.0,0.00015898,2]
[419906287,1775495474822,-500.0,0.00015898,2]
[419906288,1775495474832,-500.0,0.00015898,2]
[419906289,1775495474841,-500.0,0.00015898,2]
[419906290,1775495474851,-500.0,0.00015898,2]
[419906291,1775495474860,-500.0,0.00015898,2]
[419906292,1775495474870,-500.0,0.00015898,2]
[419906293,1775495474879,-500.0,0.00015898,2]
[419906294,1775495474888,-500.0,0.00015898,2]
[419906295,1775495474898,-500.0,0.00015898,2]
[419906296,1775495474907,-500.0,0.00015898,2]
[419906297,1775495474916,-500.0,0.00015898,2]
[419906298,1775495475430,-500.0,0.00015899,2]
[419906299,1775495475440,-500.0,0.00015899,2]
[419906300,1775495475450,-500.0,0.00015899,2]
[419906301,1775495475459,-500.0,0.00015899,2]
[419906302,1775495475469,-500.0,0.00015899,2]
[419906303,1775495475479,-500.0,0.00015899,2]
[419906304,1775495475489,-500.0,0.00015899,2]
[419906305,1775495475498,-500.0,0.00015899,2]
[419906306,1775495475507,-500.0,0.00015899,2]
[419906307,1775495475517,-500.0,0.00015899,2]
[419906308,1775495475526,-500.0,0.00015899,2]
[419906309,1775495475536,-500.0,0.00015899,2]
[419906310,1775495475545,-500.0,0.00015899,2]
[419906311,1775495475555,-15226.69165006,0.00015899,2]
[419906312,1775495475564,-500.0,0.00015899,2]
[419906313,1775495475573,-21290.97079583,0.000159,3]
[419906314,1775495475583,-25000.0,0.000159,3]
[419906315,1775495475592,-1421.77954853,0.000159,2]
[419906316,1775495475602,-25000.0,0.000159,3]
[419906317,1775495475611,-260.80375001,0.000159,2]
[419906318,1775495475620,-25000.0,0.000159,3]
[419906319,1775495475630,-258.45369648,0.000159,2]
[419906320,1775495475639,-18855.97246626,0.000159,2]
[419906321,1775495475649,-10083.37203496,0.000159,2]
[419906322,1775495475659,-453.9471921,0.000159,2]
[419906323,1775495475669,-453.9471921,0.000159,2]
[419906324,1775495475678,-453.9471921,0.000159,2]
[419906325,1775495475688,-453.9471921,0.000159,2]
[419906326,1775495475697,-453.9471921,0.000159,2]
[419906327,1775495475706,-453.9471921,0.000159,2]
[419906328,1775495475715,-453.9471921,0.000159,2]
[419906329,1775495475725,-453.9471921,0.000159,2]
[419906330,1775495475734,-1300.0,0.000159,5]
[419906331,1775495475744,-453.9471921,0.000159,2]
[419906332,1775495475753,-453.9471921,0.000159,2]
[419906333,1775495475762,-453.9471921,0.000159,2]
[419906334,1775495475772,-25000.0,0.000159,3]
[419906335,1775495475782,-453.9471921,0.000159,2]
[419906336,1775495475791,-453.9471921,0.000159,2]
[419906337,1775495475800,-453.9471921,0.000159,2]
[419906338,1775495475809,-453.9471921,0.000159,2]
[419906339,1775495475819,-453.9471921,0.000159,2]
[419906340,1775495475828,-6140.00081636,0.000159,2]
[419906341,1775495475837,-200.0,0.000159,5]
[419906342,1775495475848,-2402.5798236,0.000159,2]
[419906343,1775495475857,-5818.33073564,0.000159,2]
[419906344,1775495475868,-427.86413,0.000159,2]
[419906345,1775495475877,-2000.0,0.000159,2]
[419906346,1775495475887,-500.0,0.00015927,4]
[419906347,1775495475897,-931.28136849,0.00015941,30]
[419906348,1775495475907,-150.0,0.0001597,2]
[419906349,1775495475917,-500.03384418,0.0001599,2]
[419906350,1775495475927,-200.19532377,0.0001599,2]
[419906351,1775495475936,-500.0,0.00015992,2]
[419906352,1775495475945,-500.0,0.00015992,2]
[419906353,1775495475955,-500.0,0.00015992,2]
[419906354,1775495475964,-500.0,0.00015992,2]
[419906355,1775495475973,-500.0,0.00015992,2]
[419906356,1775495475983,-500.0,0.00015992,2]
[419906357,1775495475992,-500.0,0.00015992,2]
[419906358,1775495476001,-500.0,0.00015992,2]
[419906359,1775495476011,-500.0,0.00015992,2]
[419906360,1775495476020,-500.0,0.00015992,2]